fUSD/lending_fUSD_20260329
["ID","MTS","AMOUNT","RATE_DAILY","PERIOD"]
[419017209,1774757439040,-150.0,0.00013973,2]
[419017210,1774757439050,-150.0,0.00013973,2]
[419017211,1774757439060,-150.0,0.00013973,2]
[419017212,1774757439070,-150.0,0.00013973,2]
[419017213,1774757439079,-150.0,0.00013973,2]
[419017214,1774757439089,-514.0,0.00014,2]
[419017215,1774757439099,-513.0,0.00014,2]
[419017216,1774757439108,-7093.2976499,0.00014,7]
[419017217,1774757439118,-11733.4473581,0.00014006,2]
[419017218,1774757439128,-500.0,0.00014038,2]
[419017219,1774757439139,-255.0,0.00014043,2]
[419017220,1774757439150,-1500.0,0.00014068,2]
[419017221,1774757439159,-1500.0,0.00014068,2]
[419017222,1774757439168,-150.0,0.000141,2]
[419017223,1774757439178,-160.6877311,0.00014183,2]
[419017224,1774757439187,-4731.0,0.00014193,2]
[419017225,1774757439197,-229.10100568,0.000142,2]
[419017226,1774757439207,-567.68354322,0.000142,2]
[419017227,1774757439216,-608.50123705,0.000142,2]
[419017228,1774757439226,-398.39227445,0.000142,2]
[419017229,1774757439236,-493.85294805,0.000142,2]
[419017230,1774757439246,-166.66,0.00014202,2]
[419017231,1774757439256,-150.0,0.00014247,2]
[419017232,1774757439266,-150.0,0.00014247,2]
[419017233,1774757439277,-150.0,0.00014247,2]
[419017234,1774757439287,-500.0,0.00014273,2]
[419017235,1774757439297,-500.0,0.00014273,2]
[419017236,1774757439307,-500.0,0.00014273,2]
[419017237,1774757439316,-500.0,0.00014273,2]
[419017238,1774757439327,-501.26333658,0.00014273,2]
[419017239,1774757439337,-500.69436483,0.00014273,2]
[419017240,1774757439347,-500.79800767,0.00014273,2]
[419017241,1774757439356,-163.64213874,0.00014273,2]
[419017242,1774757439367,-33006.8599,0.00014273,2]
[419017243,1774757439377,-2500.0,0.00014273,2]
[419017244,1774757439387,-500.0,0.00014283,2]
[419017245,1774757439398,-500.0,0.00014283,2]
[419017246,1774757439408,-2817.54484111,0.00014284,2]
[419017247,1774757439418,-1127.42271707,0.00014284,2]
[419017248,1774757439428,-166.72762328,0.00014284,2]
[419017249,1774757439438,-9692.7512445,0.00014284,2]
[419017250,1774757439448,-41727.88580765,0.00014284,2]
[419017251,1774757439458,-166.49832054,0.000143,2]
[419017252,1774757439468,-498.60320132,0.00014347,2]
[419017253,1774757439478,-182.0,0.00014356,2]
[419017254,1774757439488,-192.7277889,0.00014363,2]
[419017255,1774757439498,-225.24783901,0.00014372,2]
[419017256,1774757439508,-434.69633994,0.00014372,2]
[419017257,1774757439517,-574.45411735,0.00014372,2]
[419017258,1774757439528,-500.0,0.00014372,2]
[419017259,1774757439538,-500.0,0.00014372,2]
[419017260,1774757439548,-500.0,0.00014372,2]
[419017261,1774757439559,-500.0,0.00014372,2]
[419017262,1774757439568,-500.0,0.00014372,2]
[419017263,1774757439579,-500.0,0.00014372,2]
[419017264,1774757439589,-500.0,0.00014372,2]
[419017265,1774757439598,-500.0,0.00014372,2]
[419017266,1774757439608,-312.61062743,0.00014372,2]
[419017267,1774757439618,-4566.50840311,0.00014372,2]
[419017268,1774757439628,-421.06308427,0.00014372,2]
[419017269,1774757439638,-500.0,0.00014373,2]
[419017270,1774757439648,-500.0,0.00014373,2]
[419017271,1774757439658,-500.48512281,0.00014373,2]
[419017272,1774757439668,-500.0,0.00014373,2]
[419017273,1774757439677,-500.0,0.00014373,2]
[419017274,1774757439687,-500.0,0.00014373,2]
[419017275,1774757439697,-500.0,0.00014373,2]
[419017276,1774757439706,-500.0,0.00014373,2]
[419017277,1774757439716,-2500000.0,0.00014373,2]
[419017278,1774757439726,-526.92,0.00014384,2]
[419017279,1774757439736,-162.16,0.000144,2]
[419017280,1774757439747,-738.02,0.000144,2]
[419017281,1774757439756,-15875.22869035,0.0001441,2]
[419017282,1774757439766,-192.7277889,0.00014437,2]
[419017283,1774757439776,-1500000.0,0.00014447,2]
[419017284,1774757439786,-1000.0,0.00014447,2]
[419017285,1774757439796,-41727.88580758,0.00014452,2]
[419017286,1774757439805,-15626.2683677,0.0001446,2]
[419017287,1774757439816,-306741.1066467,0.0001446,2]
[419017288,1774757439825,-154.53434814,0.00014461,2]
[419017289,1774757439835,-500.0,0.00014473,2]
[419017290,1774757439845,-500.0,0.00014473,2]
[419017291,1774757439855,-500.0,0.00014473,2]
[419017292,1774757439865,-500.0,0.00014473,2]
[419017293,1774757439875,-500.0,0.00014473,2]
[419017294,1774757439884,-166.38309596,0.00014473,2]
[419017295,1774757439894,-151.0,0.00014544,2]
[419017296,1774757439904,-233.95722932,0.00014547,2]
[419017297,1774757439914,-408.64988479,0.00014547,2]
[419017298,1774757439924,-1600.0,0.00014561,2]
[419017299,1774757439933,-186.2,0.000146,2]
[419017300,1774757439943,-153.95,0.000146,2]
[419017301,1774757439953,-9692.75124446,0.00014607,2]
[419017302,1774757439963,-1745.04491428,0.00014616,2]
[419017303,1774757439974,-510.62550353,0.00014616,2]
[419017304,1774757439984,-41727.88580758,0.00014621,2]
[419017305,1774757439994,-160.0,0.00014639,2]
[419017306,1774757440004,-959.8630956,0.00014639,2]
[419017307,1774757440013,-166.66,0.00014641,2]
[419017308,1774757440023,-41727.88580758,0.00014789,2]
[419017309,1774757440033,-1000.0,0.00014821,2]
[419017310,1774757440043,-1001.92036949,0.00014821,2]
[419017311,1774757440052,-179.35577738,0.00014821,2]
[419017312,1774757440062,-1000.0,0.00014821,2]
[419017313,1774757440072,-172.16887983,0.000149,2]
[419017314,1774757440082,-172.16887982,0.000149,2]
[419017315,1774757440092,-501.59458687,0.00014921,2]
[419017316,1774757440101,-1000.0,0.00014921,2]
[419017317,1774757440111,-1000.0,0.00014921,2]
[419017318,1774757440120,-1000.0,0.00014921,2]
[419017319,1774757440130,-1000.0,0.00014921,2]
[419017320,1774757440140,-1003.48505181,0.00014921,2]
[419017321,1774757440151,-1003.11755698,0.00014921,2]
[419017322,1774757440160,-9692.75124446,0.0001493,2]
[419017323,1774757440170,-300.0,0.00015,2]
[419017324,1774757440180,-1000.0,0.00015021,2]
[419017325,1774757440191,-1000.0,0.00015021,2]
[419017326,1774757440200,-1000.0,0.00015021,2]
[419017327,1774757440210,-1000.0,0.00015021,2]
[419017328,1774757440219,-1000.0,0.00015021,2]
[419017329,1774757440229,-526.92,0.00015068,2]
[419017330,1774757440238,-166.66,0.00015081,2]
[419017331,1774757440248,-1127.42271707,0.00015092,2]
[419017332,1774757440257,-342.53,0.00015122,2]
[419017333,1774757440267,-391.6458,0.00015159,7]
[419017334,1774757440277,-2817.54484111,0.00015191,2]
[419017335,1774757440286,-433.0,0.00015234,2]
[419017336,1774757440296,-9692.75124446,0.00015254,2]
[419017337,1774757440305,-2351.0,0.00015362,2]
[419017338,1774757440315,-542.69333386,0.00015368,2]
[419017339,1774757440325,-910.63975449,0.00015368,2]
[419017340,1774757440335,-406.081874,0.00015412,7]
[419017341,1774757440358,-502.74977469,0.00015468,2]
[419017342,1774757440369,-1500.0,0.00015468,2]
[419017343,1774757440379,-580.42962611,0.00015468,2]
[419017344,1774757440389,-1500.0,0.00015468,2]
[419017346,1774757440400,-2003.48418562,0.000155,3]
[419017347,1774757440410,-166.66,0.00015521,2]
[419017348,1774757440420,-1500.0,0.00015568,2]
[419017349,1774757440433,-1466.69355566,0.00015568,2]
[419017350,1774757440443,-1500.0,0.00015568,2]
[419017351,1774757440453,-398.88065305,0.00015568,2]
[419017352,1774757440463,-1507.9229115,0.00015568,2]
[419017353,1774757440474,-9692.75124446,0.00015577,2]
[419017354,1774757440484,-732.73812256,0.00015634,2]
[419017355,1774757440494,-1172.0,0.00015692,2]
[419017356,1774757440504,-1172.0,0.00015693,2]
[419017357,1774757440513,-1172.0,0.00015697,2]
[419017358,1774757440523,-800.0,0.000157,5]
[419017359,1774757440533,-3240.0,0.00015727,2]
[419017360,1774757440543,-526.92,0.00015753,2]
[419017361,1774757440553,-451.0,0.00015781,2]
[419017362,1774757440562,-1201.0,0.00015781,2]
[419017363,1774757440573,-800.0,0.000158,5]
[419017365,1774757440583,-1172.0,0.00015815,2]
[419017367,1774757440594,-1172.0,0.00015868,2]
[419017369,1774757440603,-2000.0,0.0001589,2]
[419017371,1774757440615,-1172.0,0.00015894,2]
[419017374,1774757440625,-150.26946783,0.000159,2]
[419017376,1774757440635,-150.0,0.000159,2]
[419017378,1774757440645,-150.0,0.000159,2]
[419017380,1774757440655,-150.0,0.000159,2]
[419017382,1774757440665,-150.0,0.000159,2]
[419017384,1774757440675,-800.0,0.000159,5]
[419017385,1774757440685,-24564.96563794,0.000159,2]
[419017386,1774757440710,-3404.56,0.000159,2]
[419017387,1774757441302,-300.0,0.00014958,2]
[419017388,1774757441516,-2109.78527406,0.00014958,2]
[419017459,1774757444063,-466.89649414,0.00014958,2]
[419017474,1774757446836,-38851.20403938,0.00014958,2]
[419017475,1774757447010,-41727.88580758,0.00015126,2]
[419017476,1774757447020,-68851.85001966,0.000159,2]
[419017479,1774757463353,6568.0,0.00017,60]
[419017480,1774757871852,1215.0,0.00011,2]
[419017481,1774758033613,667.0,0.00011,2]
[419017482,1774758425528,162.91,0.0001033,2]
[419017488,1774758631614,-1789.86,0.00011507,2]
[419017489,1774758631625,-60.14,0.00011507,2]
[419017490,1774758631679,-223.86,0.00011507,2]
[419017491,1774758631692,-213.25944044,0.00011832,2]
[419017492,1774758631702,-166.66,0.00012456,2]
[419017493,1774758631713,-166.66,0.00012719,2]
[419017494,1774758631727,-20.28477309,0.00012953,2]
[419017495,1774758631744,-192.97466733,0.00012953,2]
[419017496,1774758631766,-308.57733052,0.0001297,2]
[419017497,1774758631799,-339.75260614,0.0001297,2]
[419017498,1774758631831,-1351.67006334,0.0001297,2]
[419017499,1774758631843,-166.66,0.00012981,2]
[419017500,1774758631864,-250.0,0.00013,2]
[419017501,1774758631874,-166.66,0.00013243,2]
[419017502,1774758631885,-165.6,0.00013299,2]
[419017503,1774758631896,-1200.0,0.00013423,2]
[419017504,1774758631920,-300.0,0.00013424,2]
[419017505,1774758631937,-982.94993666,0.00013425,2]
[419017506,1774758631954,-867.29465335,0.00013425,2]
[419017507,1774758632125,-1389.75540999,0.00013425,2]
[419017508,1774758632135,-150.99,0.00013425,2]
[419017509,1774758632151,-500.0,0.00013454,2]
[419017510,1774758632167,-166.66,0.00013505,2]
[419017511,1774758632177,-200.0,0.000136,4]
[419017512,1774758632188,-150.0,0.00013699,2]
[419017513,1774758632198,-150.0,0.00013699,2]
[419017514,1774758632225,-200.0,0.00013699,2]
[419017515,1774758632236,-400.0,0.000137,5]
[419017516,1774758632248,-166.66,0.00013768,2]
[419017517,1774758632259,-600.0,0.000138,5]
[419017518,1774758632270,-800.0,0.000139,5]
[419017519,1774758632283,-150.0,0.00013973,2]
[419017520,1774758632295,-514.0,0.00014,2]
[419017521,1774758632330,-150.0,0.00014,2]
[419017522,1774758632341,-4731.0,0.00014042,2]
[419017524,1774758632365,-213.25944042,0.00014073,2]
[419017526,1774758632376,-200.0,0.00014087,2]
[419017528,1774758632400,-500.0,0.00014087,2]
[419017529,1774758632411,-500.0,0.00014087,2]
[419017530,1774758632422,-500.0,0.00014087,2]
[419017531,1774758632432,-0.47397697,0.00014087,2]
[419017532,1774758632450,-310.55827694,0.00014087,2]
[419017533,1774758632463,-143.86583748,0.00014087,2]
[419017534,1774758632473,-167.81591293,0.00014087,2]
[419017535,1774758632485,-22.34309959,0.00014087,2]
[419017537,1774758632499,-128.65690041,0.00014087,2]
[419017539,1774758632510,-151.0,0.00014087,2]
[419017541,1774758632520,-151.0,0.00014087,2]
[419017542,1774758632531,-80.75309959,0.00014087,2]
[419017550,1774758637870,-70.24690041,0.00014087,2]
[419017551,1774758637884,-151.0,0.00014087,2]
[419017552,1774758637895,-151.0,0.00014087,2]
[419017553,1774758637905,-151.0,0.00014087,2]
[419017554,1774758637915,-151.0,0.00014087,2]
[419017555,1774758637925,-151.0,0.00014087,2]
[419017556,1774758637935,-151.0,0.00014087,2]
[419017557,1774758637945,-151.0,0.00014087,2]
[419017558,1774758637954,-151.0,0.00014087,2]
[419017559,1774758637965,-151.0,0.00014087,2]
[419017560,1774758637974,-257.558448,0.00014087,2]
[419017561,1774758637985,-151.0,0.00014087,2]
[419017562,1774758637995,-151.0,0.00014087,2]
[419017563,1774758638005,-151.0,0.00014087,2]
[419017564,1774758638015,-151.0,0.00014087,2]
[419017565,1774758638024,-151.0,0.00014087,2]
[419017566,1774758638034,-151.0,0.00014087,2]
[419017567,1774758638044,-151.0,0.00014087,2]
[419017568,1774758638054,-521.99345554,0.00014087,2]
[419017569,1774758638065,-151.0,0.00014087,2]
[419017570,1774758638074,-151.0,0.00014087,2]
[419017571,1774758638085,-151.0,0.00014087,2]
[419017572,1774758638095,-151.0,0.00014087,2]
[419017573,1774758638105,-4867.52,0.00014096,2]
[419017574,1774758638115,-150.0,0.000141,2]
[419017575,1774758638125,-167.65644735,0.000141,2]
[419017576,1774758638135,-211.4161063,0.000141,2]
[419017577,1774758638145,-302.90983201,0.00014172,2]
[419017578,1774758638155,-150.0,0.00014172,2]
[419017579,1774758638166,-1267.73664687,0.00014173,2]
[419017580,1774758638183,-330.9471,0.00014173,2]
[419017581,1774758638195,-31408.17615313,0.00014173,2]
[419017582,1774758638206,-500.0,0.00014173,2]
[419017583,1774758638216,-2500.0,0.00014173,2]
[419017584,1774758638226,-500.0,0.00014173,2]
[419017585,1774758638236,-500.0,0.00014173,2]
[419017586,1774758638246,-500.0,0.00014173,2]
[419017587,1774758638256,-500.0,0.00014173,2]
[419017588,1774758638266,-429.85911728,0.00014173,2]
[419017589,1774758638276,-500.0,0.00014173,2]
[419017590,1774758638286,-500.0,0.00014173,2]
[419017591,1774758638296,-1000.0,0.00014173,2]
[419017592,1774758638306,-417.16662784,0.00014173,2]
[419017593,1774758638316,-8452.63452333,0.00014173,2]
[419017594,1774758638326,-181.87716089,0.00014173,2]
[419017595,1774758638336,-33382.30864608,0.00014173,2]
[419017596,1774758638345,-245.4500981,0.00014173,2]
[419017597,1774758638355,-9692.7512445,0.00014173,2]
[419017598,1774758638364,-245.4500981,0.00014173,2]
[419017599,1774758638374,-182.0,0.00014247,2]
[419017600,1774758638383,-2066.29,0.00014263,2]
[419017601,1774758638393,-2066.29,0.00014263,2]
[419017602,1774758638403,-2066.29,0.00014263,2]
[419017603,1774758638412,-2066.29,0.00014263,2]
[419017604,1774758638422,-2066.29,0.00014263,2]
[419017605,1774758638431,-192.7277889,0.00014263,2]
[419017606,1774758638441,-402.11788214,0.00014272,2]
[419017607,1774758638451,-157.67348731,0.00014272,2]
[419017608,1774758638460,-500.0,0.00014272,2]
[419017609,1774758638470,-154.28743796,0.00014272,2]
[419017610,1774758638479,-172.33623521,0.00014272,2]
[419017611,1774758638488,-280.40890198,0.00014272,2]
[419017612,1774758638498,-500.0,0.00014272,2]
[419017613,1774758638507,-500.0,0.00014272,2]
[419017614,1774758638516,-500.0,0.00014272,2]
[419017615,1774758638526,-500.0,0.00014272,2]
[419017616,1774758638535,-183.50106687,0.00014272,2]
[419017617,1774758638545,-178.93015126,0.00014272,2]
[419017618,1774758638554,-2500000.0,0.00014273,2]
[419017619,1774758638563,-500.0,0.00014273,2]
[419017620,1774758638572,-337.48789903,0.00014273,2]
[419017621,1774758638582,-163.45026092,0.00014273,2]
[419017622,1774758638591,-500.0,0.00014273,2]
[419017623,1774758638601,-500.0,0.00014273,2]
[419017624,1774758638611,-500.0,0.00014273,2]
[419017625,1774758638620,-500.61251814,0.00014273,2]
[419017626,1774758638630,-500.0,0.00014273,2]
[419017627,1774758638639,-518.51040499,0.00014273,2]
[419017628,1774758638649,-160.27279954,0.00014273,2]
[419017629,1774758638659,-500.0,0.00014273,2]
[419017630,1774758638669,-500.0,0.00014273,2]
[419017631,1774758638679,-500.0,0.00014273,2]
[419017632,1774758638688,-500.0,0.00014273,2]
[419017633,1774758638698,-500.0,0.00014273,2]
[419017634,1774758638707,-500.0,0.00014273,2]
[419017635,1774758638717,-500.0,0.00014273,2]
[419017636,1774758638727,-500.0,0.00014283,2]
[419017637,1774758638737,-162.92,0.000143,2]
[419017638,1774758638746,-162.15,0.000143,2]
[419017639,1774758638756,-1402.24,0.000143,2]
[419017640,1774758638765,-219.37,0.000143,2]
[419017641,1774758638775,-8452.63452333,0.00014354,2]
[419017642,1774758638784,-33382.30864607,0.0001436,2]
[419017643,1774758638795,-500.0,0.00014372,2]
[419017644,1774758638805,-150.16805847,0.00014372,2]
[419017645,1774758638814,-500.0,0.00014372,2]
[419017646,1774758638824,-500.0,0.00014411,2]
[419017647,1774758638833,-245.45009805,0.0001442,2]
[419017648,1774758638843,-245.45009805,0.0001442,2]
[419017649,1774758638852,-417.16662779,0.00014461,2]
[419017650,1774758638862,-154.53434814,0.00014483,2]
[419017651,1774758638872,-9692.75124446,0.00014518,2]
[419017652,1774758638882,-8452.63452333,0.00014535,2]
[419017653,1774758638892,-33382.30864607,0.00014547,2]
[419017654,1774758638902,-2000.0,0.00014591,2]
[419017655,1774758638912,-160.0,0.00014607,2]
[419017656,1774758638922,-959.8630956,0.00014607,2]
[419017657,1774758638933,-200.0,0.00014635,2]
[419017658,1774758638942,-245.45009805,0.00014666,2]
[419017659,1774758638952,-420.0,0.00014715,2]
[419017660,1774758638961,-8452.63452333,0.00014715,2]
[419017661,1774758638971,-501.32363081,0.00014721,2]
[419017662,1774758638980,-1000.0,0.00014721,2]
[419017663,1774758638990,-1000.0,0.00014721,2]
[419017664,1774758639000,-33382.30864607,0.00014734,2]
[419017665,1774758639010,-417.16662779,0.00014749,2]
[419017666,1774758639020,-150.0,0.0001475,2]
[419017667,1774758639030,-1680.0,0.00014765,2]
[419017668,1774758639040,-1000.0,0.00014821,2]
[419017669,1774758639049,-1000.0,0.00014821,2]
[419017670,1774758639059,-1000.0,0.00014821,2]
[419017671,1774758639068,-1000.0,0.00014821,2]
[419017672,1774758639079,-1000.0,0.00014821,2]
[419017673,1774758639088,-1000.0,0.00014821,2]
[419017674,1774758639099,-875.52475925,0.00014821,2]
[419017675,1774758639109,-501.26333658,0.00014821,2]
[419017676,1774758639118,-1003.11755698,0.00014821,2]
[419017677,1774758639128,-1003.48505181,0.00014821,2]
[419017678,1774758639137,-9692.75124446,0.00014864,2]
[419017679,1774758639147,-8452.63452333,0.00014896,2]
[419017680,1774758639156,-172.16887983,0.000149,2]
[419017681,1774758639166,-172.16887982,0.000149,2]
[419017682,1774758639176,-1000.0,0.000149,5]
[419017683,1774758639186,-245.45009805,0.00014913,2]
[419017684,1774758639195,-33382.30864607,0.00014921,2]
[419017685,1774758639205,-300.0,0.00015,2]
[419017686,1774758639215,-417.16662779,0.00015037,2]
[419017687,1774758639224,-181.87716088,0.00015037,2]
[419017688,1774758639235,-342.53,0.00015068,2]
[419017689,1774758639244,-8452.63452333,0.00015077,2]
[419017690,1774758639254,-183.50106686,0.00015086,2]
[419017691,1774758639263,-33382.30864607,0.00015108,2]
[419017692,1774758639273,-255.0,0.0001512,2]
[419017693,1774758639282,-245.45009805,0.0001516,2]
[419017694,1774758639291,-500.0,0.00015173,2]
[419017695,1774758639301,-500.0,0.00015173,2]
[419017696,1774758639310,-165.20736909,0.00015173,2]
[419017697,1774758639320,-500.0,0.00015173,2]
[419017698,1774758639330,-500.0,0.00015173,2]
[419017699,1774758639339,-500.0,0.00015173,2]
[419017700,1774758639348,-502.54797101,0.00015173,2]
[419017701,1774758639358,-500.0,0.00015173,2]
[419017702,1774758639368,-500.0,0.00015173,2]
[419017703,1774758639377,-500.0,0.00015173,2]
[419017704,1774758639387,-303.4827321,0.00015173,2]
[419017705,1774758639397,-161.75757125,0.00015173,2]
[419017706,1774758639407,-501.2412305,0.00015173,2]
[419017707,1774758639417,-500.0,0.00015173,2]
[419017708,1774758639426,-501.46955268,0.00015173,2]
[419017709,1774758639436,-163.64213874,0.00015173,2]
[419017710,1774758639445,-500.79800767,0.00015173,2]
[419017711,1774758639455,-500.0,0.00015173,2]
[419017712,1774758639464,-500.0,0.00015173,2]
[419017713,1774758639475,-500.48512281,0.00015173,2]
[419017714,1774758639484,-500.0,0.00015173,2]
[419017715,1774758639494,-500.0,0.00015173,2]
[419017716,1774758639504,-500.0,0.00015173,2]
[419017717,1774758639514,-500.0,0.00015173,2]
[419017718,1774758639523,-500.0,0.00015173,2]
[419017719,1774758639533,-500.11753077,0.00015173,2]
[419017720,1774758639543,-200.0,0.00015183,2]
[419017721,1774758639553,-192.7277889,0.00015185,2]
[419017722,1774758639563,-1500000.0,0.00015195,2]
[419017723,1774758639573,-236.010314,0.00015199,7]
[419017724,1774758639583,-322.531836,0.00015199,7]
[419017725,1774758639592,-226.860488,0.00015199,7]
[419017726,1774758639602,-222.836674,0.00015199,7]
[419017727,1774758639612,-250.0,0.00015204,2]
[419017728,1774758639622,-10000.0,0.00015205,2]
[419017729,1774758639632,-9692.75124446,0.00015209,2]
[419017730,1774758639642,-8452.63452333,0.00015258,2]
[419017731,1774758639651,-745.04491428,0.00015268,2]
[419017732,1774758639660,-510.62550353,0.00015268,2]
[419017733,1774758639670,-33382.30864607,0.00015295,2]
[419017734,1774758639680,-417.16662779,0.00015324,2]
[419017735,1774758639690,-1127.42271707,0.0001535,2]
[419017736,1774758639700,-684.37970889,0.00015368,2]
[419017737,1774758639710,-501.43625985,0.00015368,2]
[419017738,1774758639720,-1577.83433324,0.00015368,2]
[419017740,1774758639729,-1500.0,0.00015368,2]
[419017741,1774758639739,-831.30897363,0.00015368,2]
[419017742,1774758639749,-1500.0,0.00015368,2]
[419017743,1774758639759,-8452.63452333,0.00015438,2]
[419017744,1774758639768,-587.0,0.0001548,2]
[419017745,1774758639778,-33382.30864607,0.00015482,2]
[419017746,1774758639788,-4000.0,0.00015507,2]
[419017747,1774758639798,-3978.4323412,0.00015509,2]
[419017748,1774758639807,-9247.3150802,0.00015509,2]
[419017749,1774758639817,-465.1194327,0.00015509,2]
[419017750,1774758639827,-201814.93404795,0.00015509,2]
[419017751,1774758640105,-1698.4335848,0.00015509,2]
[419017752,1774758640118,-968.03017262,0.00015509,2]
[419017753,1774758640172,-3113.15627578,0.00015509,2]
[419017790,1774758642901,-684.99999982,0.00015509,2]
[419017810,1774759831869,-1200.0,0.00013114,2]
[419017811,1774759831879,-260.71436126,0.00013114,2]
[419017812,1774759831889,-56.41832581,0.00013115,2]
[419017821,1774759837776,-443.58167419,0.00013115,2]
[419017822,1774759837786,-46.41832581,0.00013115,2]
[419017823,1774759837882,-298.46991508,0.00013115,2]
[419017824,1774759837894,-3289.54175911,0.00013115,2]
[419017825,1774759837904,-1500.0,0.00013271,2]
[419017826,1774759837913,-166.66,0.00013356,2]
[419017827,1774759837923,-3628.34824089,0.00013377,2]
[419017828,1774759837936,-593.457277,0.00013377,2]
[419017829,1774759837947,-16040.65448211,0.00013377,2]
[419017830,1774759837958,-683.37,0.00013699,2]
[419017831,1774759837968,-500.0,0.00013717,2]
[419017832,1774759837977,-500.0,0.00013717,2]
[419017833,1774759837987,-500.0,0.00013717,2]
[419017834,1774759837996,-221.42926466,0.00013717,2]
[419017835,1774759838007,-500.0,0.00013717,2]
[419017836,1774759838017,-429.0,0.00013717,2]
[419017837,1774759838027,-500.0,0.00013717,2]
[419017838,1774759838037,-429.0,0.00013717,2]
[419017839,1774759838046,-500.0,0.00013717,2]
[419017840,1774759838057,-500.0,0.00013717,2]
[419017841,1774759838066,-429.0,0.00013717,2]
[419017842,1774759838076,-500.0,0.00013717,2]
[419017843,1774759838085,-500.0,0.00013717,2]
[419017844,1774759838095,-429.0,0.00013717,2]
[419017845,1774759838104,-500.0,0.00013717,2]
[419017846,1774759838115,-500.0,0.00013717,2]
[419017847,1774759838125,-429.0,0.00013717,2]
[419017848,1774759838135,-414.92841658,0.00013717,2]
[419017849,1774759838144,-500.0,0.00013717,2]
[419017850,1774759838154,-429.0,0.00013717,2]
[419017851,1774759838163,-500.0,0.00013717,2]
[419017852,1774759838172,-500.0,0.00013717,2]
[419017853,1774759838182,-429.0,0.00013717,2]
[419017854,1774759838192,-500.0,0.00013717,2]
[419017855,1774759838201,-500.0,0.00013717,2]
[419017856,1774759838211,-429.0,0.00013717,2]
[419017857,1774759838220,-219.10448352,0.00013717,2]
[419017859,1774759838230,-500.0,0.00013717,2]
[419017861,1774759838239,-429.0,0.00013717,2]
[419017863,1774759838249,-429.0,0.00013717,2]
[419017865,1774759838258,-500.0,0.00013717,2]
[419017867,1774759838267,-429.0,0.00013717,2]
[419017869,1774759838277,-500.0,0.00013717,2]
[419017871,1774759838286,-429.0,0.00013717,2]
[419017873,1774759838297,-500.0,0.00013717,2]
[419017875,1774759838306,-429.0,0.00013717,2]
[419017876,1774759838315,-500.0,0.00013717,2]
[419017877,1774759838325,-429.0,0.00013717,2]
[419017879,1774759838334,-429.0,0.00013717,2]
[419017880,1774759838344,-500.0,0.00013717,2]
[419017881,1774759838353,-429.0,0.00013717,2]
[419017882,1774759838363,-500.0,0.00013717,2]
[419017883,1774759838373,-583.94965812,0.00013717,2]
[419017884,1774759838382,-429.0,0.00013717,2]
[419017885,1774759838392,-429.0,0.00013717,2]
[419017886,1774759838402,-429.0,0.00013717,2]
[419017887,1774759838412,-429.0,0.00013717,2]
[419017888,1774759838421,-429.0,0.00013717,2]
[419017889,1774759838432,-429.0,0.00013717,2]
[419017890,1774759838441,-429.0,0.00013717,2]
[419017891,1774759838451,-452.93669017,0.00013717,2]
[419017892,1774759838460,-150.0,0.00013717,2]
[419017893,1774759838470,-500.0,0.00013717,2]
[419017894,1774759838479,-150.0,0.00013717,2]
[419017895,1774759838489,-500.0,0.00013717,2]
[419017896,1774759838498,-150.0,0.00013717,2]
[419017897,1774759838507,-500.0,0.00013717,2]
[419017898,1774759838518,-158.3155795,0.00013717,2]